[Event "Titled Tuesday Blitz November 14 Late 2023"]
[White "Lock, Gavin R"]
[Black "The_Straightforward_Rook"]
[WhiteFideId "408646"]
[WhiteElo "2267"]
[BlackElo "2539"]
[Result "0-1"]
[Round "9"]
[TimeControl "180+1"]
[Date "2023.11.14"]
[WhiteClock "0:00:00"]
[BlackClock "0:00:44"]
[Board "77"]

1. e4 {[%clk 0:03:00]}  c6 {[%clk 0:02:59]} 2. d4 {[%clk 0:03:00]}  d5 {[%clk 0:02:59]} 3. exd5 {[%clk 0:03:01]}  cxd5 {[%clk 0:02:59]} 4. Bd3 {[%clk 0:03:01]}  Nc6 {[%clk 0:02:57]} 5. c3 {[%clk 0:03:02]}  g6 {[%clk 0:02:57]} 6. h3 {[%clk 0:02:54]}  Nh6 {[%clk 0:02:55]} 7. Nf3 {[%clk 0:02:53]}  Bf5 {[%clk 0:02:54]} 8. O-O {[%clk 0:02:42]}  Bxd3 {[%clk 0:02:50]} 9. Qxd3 {[%clk 0:02:43]}  Nf5 {[%clk 0:02:50]} 10. Bf4 {[%clk 0:02:39]}  Bg7 {[%clk 0:02:50]} 11. Nbd2 {[%clk 0:02:39]}  O-O {[%clk 0:02:50]} 12. Rfe1 {[%clk 0:02:40]}  e6 {[%clk 0:02:47]} 13. a4 {[%clk 0:02:31]}  Rc8 {[%clk 0:02:40]} 14. g3 {[%clk 0:02:21]}  Qb6 {[%clk 0:02:28]} 15. Qb5 {[%clk 0:02:21]}  Na5 {[%clk 0:02:17]} 16. h4 {[%clk 0:02:12]}  Nc4 {[%clk 0:02:08]} 17. Nxc4 {[%clk 0:02:08]}  Rxc4 {[%clk 0:02:07]} 18. Qxb6 {[%clk 0:01:49]}  axb6 {[%clk 0:02:07]} 19. a5 {[%clk 0:01:50]}  b5 {[%clk 0:01:59]} 20. Nd2 {[%clk 0:01:33]}  Rc6 {[%clk 0:01:58]} 21. Nb3 {[%clk 0:01:29]}  Ra8 {[%clk 0:01:56]} 22. Nc5 {[%clk 0:01:25]}  b4 {[%clk 0:01:45]} 23. Ra4 {[%clk 0:00:50]}  bxc3 {[%clk 0:01:38]} 24. bxc3 {[%clk 0:00:50]}  Ra7 {[%clk 0:01:26]} 25. Rb1 {[%clk 0:00:47]}  e5 {[%clk 0:01:22]} 26. Be3 {[%clk 0:00:32]}  exd4 {[%clk 0:01:17]} 27. cxd4 {[%clk 0:00:29]}  Nd6 {[%clk 0:01:09]} 28. Kg2 {[%clk 0:00:20]}  h5 {[%clk 0:01:07]} 29. Bf4 {[%clk 0:00:17]}  Bxd4 {[%clk 0:01:02]} 30. Bxd6 {[%clk 0:00:15]}  Bxc5 {[%clk 0:01:01]} 31. Bxc5 {[%clk 0:00:14]}  Rxc5 {[%clk 0:01:02]} 32. Rab4 {[%clk 0:00:12]}  Raxa5 {[%clk 0:01:00]} 33. Rxb7 {[%clk 0:00:13]}  Rc2 {[%clk 0:01:00]} 34. R1b2 {[%clk 0:00:13]}  Rxb2 {[%clk 0:00:59]} 35. Rxb2 {[%clk 0:00:14]}  Kg7 {[%clk 0:00:59]} 36. Kf3 {[%clk 0:00:14]}  Kf6 {[%clk 0:00:58]} 37. Rb7 {[%clk 0:00:13]}  Ra3+ {[%clk 0:00:56]} 38. Ke2 {[%clk 0:00:13]}  Ke6 {[%clk 0:00:54]} 39. Rc7 {[%clk 0:00:12]}  Rb3 {[%clk 0:00:53]} 40. Ra7 {[%clk 0:00:10]}  f6 {[%clk 0:00:52]} 41. Rg7 {[%clk 0:00:09]}  Kf5 {[%clk 0:00:52]} 42. Re7 {[%clk 0:00:08]}  Rb4 {[%clk 0:00:51]} 43. Ke3 {[%clk 0:00:08]}  Re4+ {[%clk 0:00:50]} 44. Rxe4 {[%clk 0:00:07]}  dxe4 {[%clk 0:00:51]} 45. f3 {[%clk 0:00:06]}  exf3 {[%clk 0:00:49]} 46. Kxf3 {[%clk 0:00:07]}  Ke5 {[%clk 0:00:47]} 47. Ke3 {[%clk 0:00:07]}  Kd5 {[%clk 0:00:45]} 48. Kf4 {[%clk 0:00:06]}  Kd4 {[%clk 0:00:44]} 49. g4 {[%clk 0:00:06]}  hxg4 {[%clk 0:00:45]} 50. Kxg4 {[%clk 0:00:07]}  Ke4 {[%clk 0:00:45]} 51. Kg3 {[%clk 0:00:00]}  f5 {[%clk 0:00:44]} 0-1


[Site "https://www.chess.com"]

[Event "Titled Tuesday Blitz November 14 Late 2023"]
[White "Ponce Cano, Adrian"]
[Black "Ramadoss, Ashokkumar"]
[WhiteFideId "22296913"]
[BlackFideId "5040990"]
[WhiteElo "2467"]
[BlackElo "2339"]
[Result "1-0"]
[Round "9"]
[TimeControl "180+1"]
[Date "2023.11.14"]
[WhiteClock "0:02:27"]
[BlackClock "0:02:07"]
[Board "80"]

1. d4 {[%clk 0:03:00]}  Nf6 {[%clk 0:02:59]} 2. Nc3 {[%clk 0:02:59]}  d5 {[%clk 0:02:56]} 3. Qd3 {[%clk 0:02:58]}  g6 {[%clk 0:02:48]} 4. f3 {[%clk 0:02:56]}  c6 {[%clk 0:02:48]} 5. Bg5 {[%clk 0:02:55]}  Bg7 {[%clk 0:02:47]} 6. O-O-O {[%clk 0:02:55]}  b5 {[%clk 0:02:42]} 7. e4 {[%clk 0:02:52]}  a6 {[%clk 0:02:39]} 8. e5 {[%clk 0:02:51]}  Ng8 {[%clk 0:02:20]} 9. Kb1 {[%clk 0:02:39]}  Bf5 {[%clk 0:02:12]} 10. Qe3 {[%clk 0:02:37]}  Nd7 {[%clk 0:02:12]} 11. g4 {[%clk 0:02:35]}  Nxe5 {[%clk 0:02:07]} 12. dxe5 {[%clk 0:02:27]} 1-0


[Site "https://www.chess.com"]

[Event "Titled Tuesday Blitz November 14 Late 2023"]
[White "Huda, Maryana"]
[Black "Martin Barcelo, Carles"]
[WhiteFideId "14116553"]
[BlackFideId "24561444"]
[WhiteElo "2343"]
[BlackElo "2451"]
[Result "0-1"]
[Round "9"]
[TimeControl "180+1"]
[Date "2023.11.14"]
[WhiteClock "0:00:00"]
[BlackClock "0:02:18"]
[Board "81"]

1. d4 {[%clk 0:03:00]}  f5 {[%clk 0:02:57]} 2. c4 {[%clk 0:02:58]}  Nf6 {[%clk 0:02:57]} 3. Nc3 {[%clk 0:02:59]}  e6 {[%clk 0:02:58]} 4. e3 {[%clk 0:02:58]}  Bb4 {[%clk 0:02:58]} 5. Bd3 {[%clk 0:02:57]}  Bxc3+ {[%clk 0:02:57]} 6. bxc3 {[%clk 0:02:57]}  O-O {[%clk 0:02:58]} 7. f4 {[%clk 0:02:56]}  b6 {[%clk 0:02:58]} 8. Nf3 {[%clk 0:02:56]}  Bb7 {[%clk 0:02:59]} 9. O-O {[%clk 0:02:56]}  d6 {[%clk 0:02:59]} 10. Bd2 {[%clk 0:02:51]}  Nbd7 {[%clk 0:03:00]} 11. a4 {[%clk 0:02:38]}  a5 {[%clk 0:02:58]} 12. Rb1 {[%clk 0:02:33]}  Be4 {[%clk 0:02:57]} 13. Bxe4 {[%clk 0:02:30]}  Nxe4 {[%clk 0:02:58]} 14. Qc2 {[%clk 0:02:19]}  Qe8 {[%clk 0:02:56]} 15. Be1 {[%clk 0:02:18]}  Qh5 {[%clk 0:02:55]} 16. Qd3 {[%clk 0:01:33]}  Rf6 {[%clk 0:02:54]} 17. Nd2 {[%clk 0:01:26]}  Nxd2 {[%clk 0:02:52]} 18. Qxd2 {[%clk 0:01:22]}  Rh6 {[%clk 0:02:49]} 19. Bg3 {[%clk 0:00:57]}  Nf6 {[%clk 0:02:49]} 20. Qf2 {[%clk 0:00:49]}  Ne4 {[%clk 0:02:49]} 21. Qf3 {[%clk 0:00:43]}  Qxf3 {[%clk 0:02:49]} 22. gxf3 {[%clk 0:00:36]}  Nd2 {[%clk 0:02:50]} 23. Rb5 {[%clk 0:00:26]}  Nxf1 {[%clk 0:02:50]} 24. Kxf1 {[%clk 0:00:27]}  Rf6 {[%clk 0:02:49]} 25. c5 {[%clk 0:00:23]}  dxc5 {[%clk 0:02:50]} 26. dxc5 {[%clk 0:00:21]}  Rb8 {[%clk 0:02:50]} 27. Ke2 {[%clk 0:00:20]}  Rf7 {[%clk 0:02:51]} 28. e4 {[%clk 0:00:19]}  Rd7 {[%clk 0:02:51]} 29. Bf2 {[%clk 0:00:14]}  Kf7 {[%clk 0:02:27]} 30. cxb6 {[%clk 0:00:13]}  cxb6 {[%clk 0:02:27]} 31. Bxb6 {[%clk 0:00:11]}  Rdb7 {[%clk 0:02:28]} 32. Bxa5 {[%clk 0:00:09]}  Rxb5 {[%clk 0:02:28]} 33. axb5 {[%clk 0:00:09]}  Rxb5 {[%clk 0:02:29]} 34. Bb4 {[%clk 0:00:09]}  Ke8 {[%clk 0:02:20]} 35. Kd3 {[%clk 0:00:08]}  Kd7 {[%clk 0:02:20]} 36. Kc4 {[%clk 0:00:08]}  Kc6 {[%clk 0:02:21]} 37. Kb3 {[%clk 0:00:06]}  fxe4 {[%clk 0:02:18]} 38. fxe4 {[%clk 0:00:06]}  Rh5 {[%clk 0:02:18]} 39. Be7 {[%clk 0:00:02]}  Rxh2 {[%clk 0:02:17]} 40. f5 {[%clk 0:00:01]}  exf5 {[%clk 0:02:17]} 41. exf5 {[%clk 0:00:02]}  Rf2 {[%clk 0:02:18]} 42. f6 {[%clk 0:00:00]}  gxf6 {[%clk 0:02:18]} 0-1


[Site "https://www.chess.com"]

[Event "Titled Tuesday Blitz November 14 Late 2023"]
[White "ExchangeAB"]
[Black "Eggleston, Thomas A"]
[BlackFideId "412139"]
[WhiteElo "2434"]
[BlackElo "2335"]
[Result "1-0"]
[Round "9"]
[TimeControl "180+1"]
[Date "2023.11.14"]
[WhiteClock "0:00:08"]
[BlackClock "0:00:00"]
[Board "82"]

1. Nf3 {[%clk 0:03:00]}  e6 {[%clk 0:02:59]} 2. b3 {[%clk 0:02:59]}  f5 {[%clk 0:02:58]} 3. Bb2 {[%clk 0:03:00]}  Nf6 {[%clk 0:02:58]} 4. d3 {[%clk 0:03:00]}  d5 {[%clk 0:02:55]} 5. Nbd2 {[%clk 0:02:59]}  c5 {[%clk 0:02:55]} 6. g3 {[%clk 0:02:59]}  Nc6 {[%clk 0:02:55]} 7. Bg2 {[%clk 0:02:59]}  Bd6 {[%clk 0:02:55]} 8. O-O {[%clk 0:02:58]}  e5 {[%clk 0:02:54]} 9. e4 {[%clk 0:02:57]}  fxe4 {[%clk 0:02:53]} 10. dxe4 {[%clk 0:02:55]}  d4 {[%clk 0:02:53]} 11. Nc4 {[%clk 0:02:43]}  Bc7 {[%clk 0:02:53]} 12. a4 {[%clk 0:02:39]}  O-O {[%clk 0:02:52]} 13. Qe2 {[%clk 0:02:28]}  Kh8 {[%clk 0:02:50]} 14. h3 {[%clk 0:02:26]}  b6 {[%clk 0:02:42]} 15. Ne1 {[%clk 0:02:17]}  a6 {[%clk 0:02:42]} 16. Nd3 {[%clk 0:02:16]}  Rb8 {[%clk 0:02:39]} 17. f4 {[%clk 0:02:10]}  exf4 {[%clk 0:02:40]} 18. gxf4 {[%clk 0:02:10]}  b5 {[%clk 0:02:36]} 19. axb5 {[%clk 0:02:09]}  axb5 {[%clk 0:02:37]} 20. Nd2 {[%clk 0:01:51]}  Be6 {[%clk 0:02:27]} 21. f5 {[%clk 0:01:34]}  Bg8 {[%clk 0:02:24]} 22. e5 {[%clk 0:01:35]}  Re8 {[%clk 0:02:18]} 23. Nf3 {[%clk 0:01:29]}  Nd5 {[%clk 0:02:14]} 24. Nxc5 {[%clk 0:01:20]}  Nf4 {[%clk 0:02:10]} 25. Qe4 {[%clk 0:01:17]}  Nxg2 {[%clk 0:02:07]} 26. Kxg2 {[%clk 0:01:17]}  Bd5 {[%clk 0:02:05]} 27. Qg4 {[%clk 0:01:10]}  Nxe5 {[%clk 0:02:03]} 28. Qh5 {[%clk 0:00:36]}  Nxf3 {[%clk 0:01:44]} 29. Rxf3 {[%clk 0:00:37]}  Bxf3+ {[%clk 0:01:38]} 30. Qxf3 {[%clk 0:00:34]}  Qg5+ {[%clk 0:01:36]} 31. Kh1 {[%clk 0:00:33]}  Qd2 {[%clk 0:01:28]} 32. Qg2 {[%clk 0:00:21]}  Qxg2+ {[%clk 0:01:27]} 33. Kxg2 {[%clk 0:00:22]}  Re2+ {[%clk 0:01:13]} 34. Kf3 {[%clk 0:00:23]}  Re3+ {[%clk 0:01:03]} 35. Kf2 {[%clk 0:00:17]}  Rxh3 {[%clk 0:00:33]} 36. Bxd4 {[%clk 0:00:15]}  Bb6 {[%clk 0:00:29]} 37. b4 {[%clk 0:00:13]}  Rh2+ {[%clk 0:00:22]} 38. Kf3 {[%clk 0:00:13]}  Rxc2 {[%clk 0:00:22]} 39. Rg1 {[%clk 0:00:12]}  Bxc5 {[%clk 0:00:10]} 40. bxc5 {[%clk 0:00:10]}  Rb7 {[%clk 0:00:07]} 41. Ke4 {[%clk 0:00:07]}  Kg8 {[%clk 0:00:06]} 42. Kd5 {[%clk 0:00:07]}  b4 {[%clk 0:00:05]} 43. c6 {[%clk 0:00:07]}  Rb5+ {[%clk 0:00:05]} 44. Kd6 {[%clk 0:00:07]}  Kf7 {[%clk 0:00:02]} 45. Rxg7+ {[%clk 0:00:07]}  Ke8 {[%clk 0:00:00]} 46. c7 {[%clk 0:00:08]} 1-0


[Site "https://www.chess.com"]

[Event "Titled Tuesday Blitz November 14 Late 2023"]
[White "Bazzano, Sebastian"]
[Black "Mazurkiewicz, Michal"]
[WhiteFideId "104566"]
[BlackFideId "1124943"]
[WhiteElo "2304"]
[BlackElo "2419"]
[Result "0-1"]
[Round "9"]
[TimeControl "180+1"]
[Date "2023.11.14"]
[WhiteClock "0:00:00"]
[BlackClock "0:00:24"]
[Board "84"]

1. d4 {[%clk 0:03:00]}  Nf6 {[%clk 0:02:57]} 2. Bf4 {[%clk 0:03:00]}  g6 {[%clk 0:02:53]} 3. Nc3 {[%clk 0:02:59]}  d5 {[%clk 0:02:53]} 4. e3 {[%clk 0:02:59]}  Bg7 {[%clk 0:02:53]} 5. h4 {[%clk 0:03:00]}  h6 {[%clk 0:02:52]} 6. Nf3 {[%clk 0:02:58]}  c6 {[%clk 0:02:52]} 7. Ne5 {[%clk 0:02:56]}  Qb6 {[%clk 0:02:49]} 8. Rb1 {[%clk 0:02:52]}  Nbd7 {[%clk 0:02:49]} 9. Bd3 {[%clk 0:02:44]}  Nh5 {[%clk 0:02:25]} 10. Nxg6 {[%clk 0:02:23]}  Nxf4 {[%clk 0:02:26]} 11. Nxf4 {[%clk 0:02:23]}  e5 {[%clk 0:02:19]} 12. Qg4 {[%clk 0:01:58]}  Bf8 {[%clk 0:01:27]} 13. dxe5 {[%clk 0:01:51]}  Nxe5 {[%clk 0:01:27]} 14. Qe2 {[%clk 0:01:52]}  Bg4 {[%clk 0:01:19]} 15. f3 {[%clk 0:01:46]}  Bd7 {[%clk 0:01:19]} 16. e4 {[%clk 0:01:15]}  d4 {[%clk 0:01:14]} 17. Nd1 {[%clk 0:01:12]}  O-O-O {[%clk 0:01:08]} 18. Nf2 {[%clk 0:00:52]}  Bd6 {[%clk 0:01:04]} 19. Nh5 {[%clk 0:00:42]}  Bb4+ {[%clk 0:00:51]} 20. Kf1 {[%clk 0:00:28]}  Be7 {[%clk 0:00:49]} 21. Ng4 {[%clk 0:00:16]}  Bxg4 {[%clk 0:00:30]} 22. fxg4 {[%clk 0:00:17]}  Rhg8 {[%clk 0:00:30]} 23. Nf4 {[%clk 0:00:08]}  Nxg4 {[%clk 0:00:24]} 24. Rh3 {[%clk 0:00:05]}  Ne3+ {[%clk 0:00:24]} 25. Rxe3 {[%clk 0:00:03]}  dxe3 {[%clk 0:00:25]} 26. Re1 {[%clk 0:00:00]}  Bxh4 {[%clk 0:00:24]} 0-1


[Site "https://www.chess.com"]

[Event "Titled Tuesday Blitz November 14 Late 2023"]
[White "Aarakan, J"]
[Black "Buchenau, Frank"]
[WhiteFideId "9946276"]
[BlackFideId "4604350"]
[WhiteElo "2239"]
[BlackElo "2409"]
[Result "1-0"]
[Round "9"]
[TimeControl "180+1"]
[Date "2023.11.14"]
[WhiteClock "0:01:34"]
[BlackClock "0:00:00"]
[Board "85"]

1. e4 {[%clk 0:02:57]}  e6 {[%clk 0:02:59]} 2. d4 {[%clk 0:02:56]}  d5 {[%clk 0:03:00]} 3. e5 {[%clk 0:02:57]}  c5 {[%clk 0:02:59]} 4. c3 {[%clk 0:02:58]}  Qb6 {[%clk 0:02:59]} 5. Nf3 {[%clk 0:02:58]}  Bd7 {[%clk 0:02:59]} 6. a3 {[%clk 0:02:58]}  Bb5 {[%clk 0:02:59]} 7. Bd3 {[%clk 0:02:58]}  Bxd3 {[%clk 0:02:57]} 8. Qxd3 {[%clk 0:02:59]}  Qa6 {[%clk 0:02:45]} 9. Qxa6 {[%clk 0:02:59]}  Nxa6 {[%clk 0:02:45]} 10. b4 {[%clk 0:02:59]}  cxd4 {[%clk 0:02:41]} 11. cxd4 {[%clk 0:03:00]}  Nb8 {[%clk 0:02:32]} 12. Nc3 {[%clk 0:02:55]}  Nc6 {[%clk 0:02:21]} 13. Nb5 {[%clk 0:02:44]}  Rc8 {[%clk 0:02:18]} 14. Bb2 {[%clk 0:02:43]}  a6 {[%clk 0:02:17]} 15. Nc3 {[%clk 0:02:42]}  Nge7 {[%clk 0:02:13]} 16. O-O {[%clk 0:02:41]}  Nf5 {[%clk 0:02:11]} 17. Rfd1 {[%clk 0:02:41]}  Be7 {[%clk 0:02:08]} 18. Na4 {[%clk 0:02:38]}  f6 {[%clk 0:02:05]} 19. Rac1 {[%clk 0:02:36]}  Kf7 {[%clk 0:01:57]} 20. g4 {[%clk 0:02:35]}  Nh6 {[%clk 0:01:53]} 21. h3 {[%clk 0:02:35]}  fxe5 {[%clk 0:01:42]} 22. dxe5 {[%clk 0:02:33]}  Rhf8 {[%clk 0:01:41]} 23. Kg2 {[%clk 0:02:32]}  Kg8 {[%clk 0:01:40]} 24. Nc5 {[%clk 0:02:31]}  Bxc5 {[%clk 0:01:38]} 25. Rxc5 {[%clk 0:02:31]}  Nf7 {[%clk 0:00:56]} 26. Rdc1 {[%clk 0:02:29]}  Rce8 {[%clk 0:00:41]} 27. b5 {[%clk 0:02:23]}  axb5 {[%clk 0:00:32]} 28. Rxb5 {[%clk 0:02:23]}  Nfd8 {[%clk 0:00:30]} 29. a4 {[%clk 0:02:17]}  Rf4 {[%clk 0:00:28]} 30. a5 {[%clk 0:02:08]}  Ref8 {[%clk 0:00:27]} 31. Rc3 {[%clk 0:02:02]}  Ra4 {[%clk 0:00:19]} 32. Ra3 {[%clk 0:02:01]}  Rxa3 {[%clk 0:00:09]} 33. Bxa3 {[%clk 0:02:01]}  Rf4 {[%clk 0:00:09]} 34. Bc5 {[%clk 0:01:56]}  Ra4 {[%clk 0:00:08]} 35. Bb6 {[%clk 0:01:56]}  Nf7 {[%clk 0:00:07]} 36. Rc5 {[%clk 0:01:54]}  Nfxe5 {[%clk 0:00:06]} 37. Nxe5 {[%clk 0:01:53]}  Nxe5 {[%clk 0:00:06]} 38. Rc8+ {[%clk 0:01:53]}  Kf7 {[%clk 0:00:07]} 39. Rc7+ {[%clk 0:01:54]}  Kg6 {[%clk 0:00:07]} 40. Rxb7 {[%clk 0:01:55]}  Rb4 {[%clk 0:00:04]} 41. a6 {[%clk 0:01:51]}  Nc6 {[%clk 0:00:04]} 42. h4 {[%clk 0:01:43]}  h5 {[%clk 0:00:03]} 43. gxh5+ {[%clk 0:01:38]}  Kxh5 {[%clk 0:00:00]} 44. Be3 {[%clk 0:01:34]} 1-0


[Site "https://www.chess.com"]

[Event "Titled Tuesday Blitz November 14 Late 2023"]
[White "Floresvillar Gonzalez, Luis Migu"]
[Black "Su, Dion"]
[WhiteFideId "5100542"]
[BlackFideId "2029731"]
[WhiteElo "2215"]
[BlackElo "2399"]
[Result "0-1"]
[Round "9"]
[TimeControl "180+1"]
[Date "2023.11.14"]
[WhiteClock "0:00:00"]
[BlackClock "0:00:13"]
[Board "86"]

1. d4 {[%clk 0:02:52]}  Nf6 {[%clk 0:02:56]} 2. c3 {[%clk 0:02:52]}  c5 {[%clk 0:02:54]} 3. Bg5 {[%clk 0:02:50]}  cxd4 {[%clk 0:02:52]} 4. Bxf6 {[%clk 0:02:50]}  gxf6 {[%clk 0:02:49]} 5. Qxd4 {[%clk 0:02:49]}  Nc6 {[%clk 0:02:49]} 6. Qd3 {[%clk 0:02:41]}  Qb6 {[%clk 0:02:41]} 7. Qd2 {[%clk 0:02:30]}  Bh6 {[%clk 0:02:24]} 8. e3 {[%clk 0:02:28]}  d6 {[%clk 0:02:22]} 9. Na3 {[%clk 0:02:28]}  Be6 {[%clk 0:02:19]} 10. Nc4 {[%clk 0:02:27]}  Qc5 {[%clk 0:02:17]} 11. b4 {[%clk 0:02:19]}  Qh5 {[%clk 0:02:10]} 12. Be2 {[%clk 0:02:10]}  Qg6 {[%clk 0:02:10]} 13. g3 {[%clk 0:02:05]}  Qe4 {[%clk 0:01:57]} 14. f3 {[%clk 0:02:00]}  Qg6 {[%clk 0:01:54]} 15. Bd3 {[%clk 0:01:56]}  f5 {[%clk 0:01:46]} 16. Ne2 {[%clk 0:01:53]}  Rc8 {[%clk 0:01:42]} 17. Na5 {[%clk 0:01:36]}  Ne5 {[%clk 0:01:34]} 18. O-O {[%clk 0:01:30]}  b6 {[%clk 0:01:34]} 19. Nb3 {[%clk 0:01:26]}  Nxd3 {[%clk 0:01:29]} 20. Qxd3 {[%clk 0:01:25]}  Bc4 {[%clk 0:01:25]} 21. Qd2 {[%clk 0:01:22]}  O-O {[%clk 0:01:25]} 22. Rfe1 {[%clk 0:01:18]}  Qh5 {[%clk 0:01:17]} 23. Kg2 {[%clk 0:01:13]}  Bg7 {[%clk 0:01:11]} 24. Rac1 {[%clk 0:01:08]}  Rfd8 {[%clk 0:01:07]} 25. Nf4 {[%clk 0:01:08]}  Qh6 {[%clk 0:01:06]} 26. Nd4 {[%clk 0:01:05]}  e6 {[%clk 0:00:48]} 27. h4 {[%clk 0:00:47]}  Kh8 {[%clk 0:00:41]} 28. Nde2 {[%clk 0:00:42]}  Be5 {[%clk 0:00:34]} 29. Nd4 {[%clk 0:00:34]}  Rg8 {[%clk 0:00:30]} 30. Rh1 {[%clk 0:00:32]}  Rg7 {[%clk 0:00:20]} 31. Rcg1 {[%clk 0:00:31]}  Rcg8 {[%clk 0:00:19]} 32. Kf2 {[%clk 0:00:30]}  Bf6 {[%clk 0:00:18]} 33. Nde2 {[%clk 0:00:16]}  Bxe2 {[%clk 0:00:15]} 34. Nxe2 {[%clk 0:00:13]}  d5 {[%clk 0:00:15]} 35. Nf4 {[%clk 0:00:11]}  Be5 {[%clk 0:00:14]} 36. Qe2 {[%clk 0:00:08]}  Bd6 {[%clk 0:00:12]} 37. Rg2 {[%clk 0:00:04]}  Be5 {[%clk 0:00:12]} 38. Rhg1 {[%clk 0:00:00]}  Bxc3 {[%clk 0:00:13]} 0-1


[Site "https://www.chess.com"]

[Event "Titled Tuesday Blitz November 14 Late 2023"]
[White "Hoffmann, Asa"]
[Black "Figorito, Nick"]
[WhiteFideId "2001470"]
[BlackFideId "30923689"]
[WhiteElo "2392"]
[BlackElo "2397"]
[Result "0-1"]
[Round "9"]
[TimeControl "180+1"]
[Date "2023.11.14"]
[WhiteClock "0:00:48"]
[BlackClock "0:00:45"]
[Board "87"]

1. d4 {[%clk 0:02:56]}  Nf6 {[%clk 0:03:00]} 2. Bg5 {[%clk 0:02:55]}  d5 {[%clk 0:03:00]} 3. Nd2 {[%clk 0:02:55]}  e6 {[%clk 0:02:59]} 4. e3 {[%clk 0:02:54]}  Be7 {[%clk 0:02:59]} 5. Bd3 {[%clk 0:02:52]}  Nbd7 {[%clk 0:02:58]} 6. f4 {[%clk 0:02:45]}  c5 {[%clk 0:02:52]} 7. c3 {[%clk 0:02:45]}  Qb6 {[%clk 0:02:52]} 8. Rb1 {[%clk 0:02:45]}  a5 {[%clk 0:02:49]} 9. Ngf3 {[%clk 0:02:45]}  Qc7 {[%clk 0:02:29]} 10. O-O {[%clk 0:02:43]}  g6 {[%clk 0:02:11]} 11. Ne5 {[%clk 0:02:42]}  h5 {[%clk 0:02:05]} 12. Qe1 {[%clk 0:02:40]}  Ng4 {[%clk 0:01:53]} 13. Bxe7 {[%clk 0:02:33]}  Kxe7 {[%clk 0:01:53]} 14. Nxg4 {[%clk 0:02:33]}  hxg4 {[%clk 0:01:53]} 15. Qg3 {[%clk 0:02:27]}  f5 {[%clk 0:01:50]} 16. h3 {[%clk 0:02:15]}  Nf6 {[%clk 0:01:38]} 17. Kf2 {[%clk 0:02:11]}  Bd7 {[%clk 0:01:28]} 18. Rh1 {[%clk 0:02:10]}  Qb6 {[%clk 0:01:26]} 19. b3 {[%clk 0:01:59]}  cxd4 {[%clk 0:01:16]} 20. exd4 {[%clk 0:01:56]}  Qc7 {[%clk 0:01:12]} 21. Rbc1 {[%clk 0:01:53]}  a4 {[%clk 0:01:07]} 22. Be2 {[%clk 0:01:52]}  axb3 {[%clk 0:01:00]} 23. axb3 {[%clk 0:01:51]}  Ra2 {[%clk 0:01:01]} 24. hxg4 {[%clk 0:01:12]}  Rxh1 {[%clk 0:00:57]} 25. Rxh1 {[%clk 0:01:11]}  Rxd2 {[%clk 0:00:58]} 26. Qh4 {[%clk 0:01:01]}  Qxf4+ {[%clk 0:00:54]} 27. Ke1 {[%clk 0:00:48]}  Rb2 {[%clk 0:00:45]} 0-1


[Site "https://www.chess.com"]

[Event "Titled Tuesday Blitz November 14 Late 2023"]
[White "Novikova, Margarita"]
[Black "tandercat"]
[WhiteFideId "14109689"]
[WhiteElo "2184"]
[BlackElo "2058"]
[Result "1-0"]
[Round "9"]
[TimeControl "180+1"]
[Date "2023.11.14"]
[WhiteClock "0:00:33"]
[BlackClock "0:00:00"]
[Board "90"]

1. e4 {[%clk 0:02:56]}  c5 {[%clk 0:02:59]} 2. Nc3 {[%clk 0:02:56]}  Nc6 {[%clk 0:02:55]} 3. d3 {[%clk 0:02:57]}  g6 {[%clk 0:02:55]} 4. Be3 {[%clk 0:02:57]}  d6 {[%clk 0:02:54]} 5. Qd2 {[%clk 0:02:58]}  Bg7 {[%clk 0:02:54]} 6. g3 {[%clk 0:02:58]}  a6 {[%clk 0:02:38]} 7. Bg2 {[%clk 0:02:23]}  h6 {[%clk 0:02:33]} 8. Nge2 {[%clk 0:02:23]}  Nf6 {[%clk 0:02:31]} 9. h3 {[%clk 0:02:06]}  Bd7 {[%clk 0:02:29]} 10. Nd1 {[%clk 0:02:06]}  b5 {[%clk 0:02:24]} 11. c3 {[%clk 0:02:05]}  e5 {[%clk 0:02:20]} 12. O-O {[%clk 0:02:05]}  Be6 {[%clk 0:02:15]} 13. d4 {[%clk 0:02:04]}  cxd4 {[%clk 0:01:36]} 14. cxd4 {[%clk 0:02:05]}  Bd7 {[%clk 0:01:35]} 15. d5 {[%clk 0:01:58]}  Na5 {[%clk 0:01:24]} 16. b3 {[%clk 0:01:57]}  Nb7 {[%clk 0:01:23]} 17. f4 {[%clk 0:01:56]}  Qc8 {[%clk 0:01:09]} 18. Rc1 {[%clk 0:01:53]}  Qd8 {[%clk 0:01:04]} 19. fxe5 {[%clk 0:01:52]}  dxe5 {[%clk 0:01:05]} 20. Nb2 {[%clk 0:01:48]}  Nd6 {[%clk 0:01:04]} 21. Qd3 {[%clk 0:01:42]}  Rc8 {[%clk 0:01:00]} 22. Bc5 {[%clk 0:01:41]}  Rxc5 {[%clk 0:00:42]} 23. Rxc5 {[%clk 0:01:40]}  Qb6 {[%clk 0:00:41]} 24. b4 {[%clk 0:01:40]}  Nb7 {[%clk 0:00:32]} 25. Rc1 {[%clk 0:01:40]}  O-O {[%clk 0:00:30]} 26. Kh2 {[%clk 0:01:35]}  a5 {[%clk 0:00:22]} 27. a3 {[%clk 0:01:31]}  Nxc5 {[%clk 0:00:16]} 28. bxc5 {[%clk 0:01:31]}  Qa6 {[%clk 0:00:14]} 29. c6 {[%clk 0:01:31]}  Bc8 {[%clk 0:00:14]} 30. Na4 {[%clk 0:01:30]}  bxa4 {[%clk 0:00:13]} 31. Qd2 {[%clk 0:01:21]}  Ne8 {[%clk 0:00:12]} 32. Bf1 {[%clk 0:01:19]}  Nd6 {[%clk 0:00:11]} 33. Nc3 {[%clk 0:01:14]}  Qb6 {[%clk 0:00:10]} 34. Nxa4 {[%clk 0:01:13]}  Qb3 {[%clk 0:00:09]} 35. Nc5 {[%clk 0:01:11]}  Qxa3 {[%clk 0:00:08]} 36. Rb1 {[%clk 0:00:50]}  Kh7 {[%clk 0:00:07]} 37. Rb8 {[%clk 0:00:46]}  Qxc5 {[%clk 0:00:06]} 38. Ra8 {[%clk 0:00:38]}  Nxe4 {[%clk 0:00:06]} 39. Qe1 {[%clk 0:00:36]}  Qxd5 {[%clk 0:00:05]} 40. Bg2 {[%clk 0:00:36]}  Bf5 {[%clk 0:00:03]} 41. Rxf8 {[%clk 0:00:32]}  Bxf8 {[%clk 0:00:00]} 42. c7 {[%clk 0:00:33]} 1-0


[Site "https://www.chess.com"]